fUST/lending_fUST_20250512
["ID","MTS","AMOUNT","RATE_DAILY","PERIOD"]
[360824401,1747044632281,-500.0,0.00014873,2]
[360824403,1747044632291,-500.0,0.00014873,2]
[360824405,1747044632300,-500.0,0.00014873,2]
[360824407,1747044632309,-500.0,0.00014873,2]
[360824409,1747044632319,-500.0,0.00014873,2]
[360824410,1747044632329,-500.0,0.00014873,2]
[360824412,1747044632339,-504.3942579,0.00014873,2]
[360824414,1747044632348,-500.0,0.00014873,2]
[360824416,1747044632359,-500.0,0.00014873,2]
[360824418,1747044632368,-500.0,0.00014873,2]
[360824420,1747044632378,-500.0,0.00014873,2]
[360824422,1747044632387,-500.0,0.00014873,2]
[360824424,1747044632396,-500.0,0.00014873,2]
[360824426,1747044632406,-509.77833502,0.00014873,2]
[360824428,1747044632415,-502.07788518,0.00014873,2]
[360824430,1747044632425,-500.98319267,0.00014873,2]
[360824432,1747044632434,-162.04733954,0.00014873,2]
[360824434,1747044632443,-500.0,0.00014873,2]
[360824436,1747044632453,-459.86847064,0.00014873,2]
[360824438,1747044632463,-500.0,0.00014873,2]
[360824440,1747044632472,-501.44768991,0.00014873,2]
[360824442,1747044632482,-200.99057389,0.00014873,2]
[360824444,1747044632491,-500.0,0.00014873,2]
[360824446,1747044632500,-500.0,0.00014873,2]
[360824448,1747044632510,-160.0,0.00014897,2]
[360824450,1747044632519,-373253.64003546,0.00014898,2]
[360824532,1747044637963,-500.0,0.00013635,2]
[360824533,1747044637973,-185.67848941,0.00013635,2]
[360824534,1747044637982,-500.0,0.00013635,2]
[360824535,1747044637991,-500.0,0.00013635,2]
[360824536,1747044638002,-500.0,0.00013635,2]
[360824537,1747044638012,-125.69551998,0.00013635,2]
[360824539,1747044638208,-374.30448002,0.00013635,2]
[360824540,1747044638217,-500.0,0.00013635,2]
[360824541,1747044638226,-500.0,0.00013635,2]
[360824542,1747044638235,-600.8726861,0.00013635,2]
[360824543,1747044638244,-500.0,0.00013635,2]
[360824544,1747044638254,-500.0,0.00013635,2]
[360824545,1747044638263,-500.0,0.00013635,2]
[360824546,1747044638273,-500.0,0.00013635,2]
[360824547,1747044638282,-391.73217257,0.00013635,2]
[360824548,1747044638291,-751424.24849744,0.00014898,2]
[360824605,1747044646050,-28317.26096747,0.00014898,2]
[360824606,1747044646204,-7841.89576242,0.00014898,2]
[360824608,1747044705292,-303.93010828,0.00013635,2]
[360824609,1747044719708,-196.06989172,0.00013635,2]
[360824610,1747044719732,-177.77434013,0.00013635,2]
[360824611,1747044735282,-196.92927326,0.00013634,2]
[360824625,1747045119690,-190.59257463,0.000146,2]
[360824626,1747045124813,-148.71942537,0.000146,2]
[360824629,1747045409488,-265.01142694,0.00013699,2]
[360824630,1747045424792,-170.17945395,0.00013699,2]
[360824632,1747045439767,-61.43308511,0.00013699,2]
[360824640,1747045588575,-253.77271441,0.0001388,2]
[360824641,1747045592743,-157.05194498,0.0001388,2]
[360824643,1747045596380,-201.01492869,0.0001388,2]
[360824646,1747045600972,-207.5515736,0.0001388,2]
[360824647,1747045602482,-189.02153651,0.0001388,2]
[360824649,1747045605681,-292.04984736,0.0001388,2]
[360824652,1747045611488,-239.24556227,0.0001388,2]
[360824658,1747045614265,-216.36141377,0.0001388,2]
[360824660,1747045620926,-179.23776153,0.0001388,2]
[360824661,1747045634768,-248.8330352,0.00013879,2]
[360824662,1747045641845,-51.1669648,0.00013879,2]
[360824663,1747045641866,-7790.8330352,0.0001388,2]
[360824664,1747045650304,-200.57044813,0.0001388,2]
[360824665,1747045665962,-164.21709764,0.0001388,2]
[360824666,1747045680346,-191.35069186,0.0001388,2]
[360824668,1747045694847,-213.88931158,0.00013879,2]
[360824672,1747045710412,-86.11068842,0.00013879,2]
[360824673,1747045710436,-70.58845339,0.0001388,2]
[360824674,1747045721642,5000.0,7.2e-05,2]
[360824675,1747045721669,35000.0,7.2e-05,2]
[360824678,1747045724850,-300.0,0.0001388,2]
[360824777,1747045836982,-300.0,0.00013879,2]
[360824778,1747045836992,-300.0,0.00013879,2]
[360824779,1747045837002,-300.0,0.00013879,2]
[360824780,1747045837012,-1200.0,0.00013879,2]
[360824781,1747045837022,-300.0,0.00013879,2]
[360824782,1747045837032,-5670.5065679,0.0001388,2]
[360824783,1747045837043,-1019.6261697,0.0001388,2]
[360824791,1747045838247,-2372.13447432,0.0001388,2]
[360824792,1747045838260,-5184.86577874,0.0001388,2]
[360824793,1747045838270,-250.0,0.00013897,2]
[360824794,1747045838279,-500.0,0.00014798,2]
[360824795,1747045838289,-500.0,0.00014798,2]
[360824796,1747045838298,-204.57093817,0.00014798,2]
[360824797,1747045838308,-500.0,0.00014798,2]
[360824798,1747045838318,-158.59444123,0.00014798,2]
[360824799,1747045838326,-500.0,0.00014798,2]
[360824800,1747045838335,-500.0,0.00014798,2]
[360824801,1747045838346,-500.0,0.00014798,2]
[360824802,1747045838356,-500.0,0.00014798,2]
[360824803,1747045838366,-500.0,0.00014798,2]
[360824804,1747045838376,-500.0,0.00014798,2]
[360824805,1747045838384,-500.0,0.00014798,2]
[360824806,1747045838394,-392.86328296,0.00014798,2]
[360824807,1747045838404,-500.0,0.00014798,2]
[360824808,1747045838414,-433.00449839,0.00014798,2]
[360824809,1747045838423,-500.0,0.00014798,2]
[360824810,1747045838433,-500.0,0.00014798,2]
[360824811,1747045838442,-500.0,0.00014798,2]
[360824812,1747045838452,-500.0,0.00014798,2]
[360824813,1747045838462,-500.0,0.00014798,2]
[360824814,1747045838472,-500.0,0.00014798,2]
[360824815,1747045838492,-500.0,0.00014798,2]
[360824816,1747045838503,-500.0,0.00014798,2]
[360824817,1747045838513,-500.0,0.00014798,2]
[360824818,1747045838522,-317.21135536,0.00014798,2]
[360824819,1747045838532,-500.0,0.00014798,2]
[360824820,1747045838542,-500.0,0.00014798,2]
[360824821,1747045838552,-500.0,0.00014798,2]
[360824822,1747045838561,-500.0,0.00014798,2]
[360824823,1747045838571,-500.0,0.00014798,2]
[360824824,1747045838580,-500.0,0.00014798,2]
[360824825,1747045838590,-500.0,0.00014798,2]
[360824826,1747045838600,-500.0,0.00014798,2]
[360824827,1747045838609,-500.0,0.00014798,2]
[360824828,1747045838619,-500.0,0.00014798,2]
[360824829,1747045838629,-500.0,0.00014798,2]
[360824830,1747045838638,-500.0,0.00014798,2]
[360824831,1747045838648,-500.0,0.00014798,2]
[360824832,1747045838658,-500.0,0.00014798,2]
[360824833,1747045838667,-500.0,0.00014798,2]
[360824834,1747045838677,-632.80240712,0.00014798,2]
[360824835,1747045838687,-500.0,0.00014798,2]
[360824836,1747045838697,-500.0,0.00014798,2]
[360824837,1747045838706,-500.0,0.00014798,2]
[360824838,1747045838716,-500.0,0.00014798,2]
[360824839,1747045838726,-500.0,0.00014798,2]
[360824840,1747045838735,-1711.45196505,0.000148,2]
[360824841,1747045838748,-483.06753868,0.000148,2]
[360824966,1747045840539,-5372.4919874,0.000148,2]
[360824968,1747045840549,-5721.16439661,0.00014872,2]
[360825003,1747045840895,-26.79281925,0.00014872,2]
[360825128,1747045843356,-187.14091965,0.00014872,2]
[360825129,1747045843366,-273.24524217,0.00014873,2]
[360825130,1747045843377,-102.22623015,0.00014873,2]
[360825131,1747045843463,-397.77376985,0.00014873,2]
[360825132,1747045843472,-500.0,0.00014873,2]
[360825133,1747045843482,-502.91119433,0.00014873,2]
[360825134,1747045843491,-500.0,0.00014873,2]
[360825136,1747045843500,-500.0,0.00014873,2]
[360825137,1747045843510,-500.0,0.00014873,2]
[360825139,1747045843519,-500.0,0.00014873,2]
[360825141,1747045843529,-500.0,0.00014873,2]
[360825143,1747045843538,-500.0,0.00014873,2]
[360825145,1747045843547,-500.0,0.00014873,2]
[360825146,1747045843556,-78.31503582,0.00014873,2]
[360825153,1747045846395,-421.68496418,0.00014873,2]
[360825155,1747045846407,-500.0,0.00014873,2]
[360825157,1747045846416,-500.0,0.00014873,2]
[360825159,1747045846425,-500.0,0.00014873,2]
[360825161,1747045846434,-5366.00544668,0.0001488,2]
[360825349,1747045866699,4612.92461485,0.00014897,13]
[360825350,1747045874768,-282.46532469,0.0001488,2]
[360825359,1747046070051,-171.94854829,0.00013686,2]
[360825360,1747046084811,-24.89911773,0.00013686,2]
[360825382,1747046309698,-174.71769267,0.00013686,2]
[360825400,1747046481063,-19825.61507862,0.00022001,120]
[360825409,1747046685471,376.19171562,0.000161,9]
[360825448,1747047032361,-207.5515736,0.00013002,2]
[360825450,1747047032374,-42.6984264,0.00013166,2]
[360825453,1747047032385,-859.95,0.00013166,2]
[360825548,1747047038276,-626.02021192,0.00013034,2]
[360825549,1747047038287,-626.02021192,0.00013166,2]
[360825550,1747047038296,-250.0,0.00013266,2]
[360825551,1747047038307,-154.0,0.00013419,2]
[360825552,1747047038316,-300.0,0.00013419,2]
[360825553,1747047038326,-500.0,0.0001342,2]
[360825554,1747047038336,-500.0,0.0001342,2]
[360825555,1747047038345,-389.45444027,0.0001342,2]
[360825556,1747047038355,-214.71613265,0.0001342,2]
[360825557,1747047038364,-154.762587,0.0001342,2]
[360825558,1747047038375,-500.0,0.0001342,2]
[360825559,1747047038384,-162.34528584,0.0001342,2]
[360825560,1747047038394,-500.0,0.0001342,2]
[360825561,1747047038403,-500.0,0.0001342,2]
[360825562,1747047038412,-500.0,0.0001342,2]
[360825563,1747047038422,-500.0,0.0001342,2]
[360825564,1747047038431,-500.0,0.0001342,2]
[360825565,1747047038440,-331.69053258,0.0001342,2]
[360825566,1747047038450,-634.817318,0.0001342,2]
[360825567,1747047038459,-9133.9827448,0.00013421,2]
[360825568,1747047038475,-2159.63376382,0.00013421,2]
[360825569,1747047038487,-13606.38349138,0.00013421,2]
[360825570,1747047038496,-1254.94278424,0.00013586,2]
[360825571,1747047038505,-471.792767,0.00013699,2]
[360825572,1747047038515,-193.83096357,0.00013699,2]
[360825573,1747047038525,-196.84766602,0.00013824,2]
[360825574,1747047038689,-3570.409197,0.00013924,2]
[360825575,1747047038699,-156.060929,0.00014304,2]
[360825576,1747047038709,-500.0,0.0001439,2]
[360825577,1747047038718,-500.0,0.0001439,2]
[360825578,1747047038728,-520.44723028,0.0001439,2]
[360825579,1747047038737,-500.0,0.0001439,2]
[360825580,1747047038747,-500.0,0.0001439,2]
[360825581,1747047038756,-500.0,0.0001439,2]
[360825582,1747047038765,-500.0,0.0001439,2]
[360825583,1747047038775,-5000.0,0.000148,2]
[360825584,1747047038784,-6810.31034199,0.000148,2]
[360825585,1747047038793,-410.26983227,0.00014873,2]
[360825586,1747047038802,-500.0,0.00014873,2]
[360825587,1747047038812,-500.0,0.00014873,2]
[360825588,1747047038822,-500.0,0.00014873,2]
[360825589,1747047038831,-500.0,0.00014873,2]
[360825590,1747047038840,-500.89417392,0.00014873,2]
[360825591,1747047038850,-500.0,0.00014873,2]
[360825592,1747047038859,-500.0,0.00014873,2]
[360825593,1747047038869,-500.0,0.00014873,2]
[360825594,1747047038878,-500.0,0.00014873,2]
[360825595,1747047038887,-500.0,0.00014873,2]
[360825596,1747047038896,-500.0,0.00014873,2]
[360825597,1747047038905,-500.0,0.00014873,2]
[360825598,1747047038914,-500.0,0.00014873,2]
[360825599,1747047038924,-500.0,0.00014873,2]
[360825600,1747047038933,-503.34300205,0.00014873,2]
[360825601,1747047038942,-633.34998742,0.00014873,2]
[360825602,1747047038951,-118994.11730065,0.0001488,2]
[360825603,1747047038963,-28780.47786181,0.0001488,2]
[360825609,1747047040503,-400.39712459,0.0001488,2]
[360825939,1747047046586,-20901.2117161,0.0001488,2]
[360825956,1747047046744,-5789.2198507,0.0001488,2]
[360825958,1747047046756,-2428.50001,0.0001488,2]
[360826407,1747048203166,61826.11839082,8.01e-05,2]
[360826420,1747048232626,-1094.7037603,0.00013155,2]
[360826421,1747048232636,-1094.7037603,0.00013423,2]
[360826422,1747048232645,-448.203128,0.00013699,2]
[360826423,1747048232655,-300.0,0.00013796,2]
[360826425,1747048232669,-300.0,0.00013796,2]
[360826426,1747048232678,-1200.0,0.00013796,2]
[360826427,1747048232688,-300.0,0.00013796,2]
[360826428,1747048232697,-7105.25569569,0.00013797,2]
[360826429,1747048232707,-13942.46942597,0.00013798,2]
[360826471,1747048238506,-392.46774248,0.0001366,2]
[360826473,1747048238516,-4477.71499565,0.00013798,2]
[360826476,1747048238528,-2101.11184565,0.00013798,2]
[360826478,1747048238540,-4378.70373273,0.00013798,2]
[360826480,1747048238550,-156.060929,0.00014304,2]
[360826482,1747048238559,-328.30371757,0.0001456,2]
[360826484,1747048238569,-652.49990956,0.00014583,2]
[360826486,1747048238579,-328.3037175,0.00014594,2]
[360826488,1747048238589,-271.45,0.000146,2]
[360826490,1747048238599,-1000.0,0.00014623,2]
[360826492,1747048238608,-275.4321479,0.00014629,2]
[360826495,1747048238625,-52.8715696,0.00014629,2]
[360826497,1747048238634,-328.3037175,0.00014663,2]
[360826499,1747048238644,-328.3037175,0.00014697,2]
[360826501,1747048238653,-328.3037175,0.00014731,2]
[360826503,1747048238663,-328.3037175,0.00014766,2]
[360826505,1747048238673,-328.3037175,0.000148,2]
[360826507,1747048238683,-500.0,0.00014873,2]
[360826509,1747048238693,-500.0,0.00014873,2]
[360826512,1747048238702,-500.0,0.00014873,2]
[360826515,1747048238712,-503.93562942,0.00014873,2]
[360826517,1747048238721,-190.97423598,0.00014873,2]
[360826519,1747048238733,-309.02576402,0.00014873,2]
[360826521,1747048238743,-500.0,0.00014873,2]
[360826523,1747048238752,-500.0,0.00014873,2]
[360826526,1747048238763,-500.0,0.00014873,2]
[360826528,1747048238773,-500.0,0.00014873,2]
[360826530,1747048238784,-504.33442312,0.00014873,2]
[360826532,1747048238793,-500.0,0.00014873,2]
[360826534,1747048238802,-15228.64299342,0.0001488,2]
[360826695,1747048240868,-1260.87,0.0001488,2]
[360826718,1747048246748,-23138.21155803,0.0001488,2]
[360826725,1747048803731,-190.59257463,0.00013827,2]
[360826726,1747048818479,-109.40742537,0.00013827,2]
[360826727,1747048818504,-188.03142537,0.00013827,2]
[360826728,1747049122068,-226.72211856,0.0001307,2]
[360826729,1747049134396,-265.01142694,0.0001307,2]
[360826730,1747049148348,-153.0109088,0.0001307,2]
[360826732,1747049194357,-178.54493453,0.00013562,2]
[360826734,1747049288688,-201.01492869,0.00013069,2]
[360826735,1747049299508,-55.98491311,0.00013069,2]
[360826793,1747049432807,-455.284979,0.00013699,2]
[360826795,1747049432820,-300.0,0.00013826,2]
[360826797,1747049432832,-1200.0,0.00013826,2]
[360826800,1747049432843,-500.0,0.00013827,2]
[360826802,1747049432855,-380.0,0.00013827,2]
[360826804,1747049432867,-500.0,0.00013827,2]
[360826806,1747049432879,-500.0,0.00013827,2]
[360826809,1747049432895,-500.0,0.00013827,2]
[360826811,1747049432906,-631.96628282,0.00013827,2]
[360826813,1747049432918,-500.0,0.00013827,2]
[360826816,1747049432930,-512.00756795,0.00013827,2]
[360826819,1747049432942,-215.25795582,0.00013827,2]
[360826821,1747049432954,-500.0,0.00013827,2]
[360826824,1747049432966,-24900.0,0.00013828,2]
[360826828,1747049432977,-468.42435147,0.00014797,2]
[360826831,1747049432989,-468.42435144,0.00014797,2]
[360826834,1747049433000,-207.50614978,0.00014798,2]
[360826840,1747049433023,-260.91820166,0.00014798,2]
[360826842,1747049433033,-468.42435144,0.00014798,2]
[360826845,1747049433043,-1870.6574469,0.00014798,2]
[360826848,1747049433055,-2750.0,0.00014798,2]
[360826851,1747049433067,-1508.6218609,0.00014798,2]
[360826853,1747049433077,-468.42435144,0.00014798,2]
[360826856,1747049433087,-2472.95378766,0.00014868,2]
[360826898,1747049433317,-92705.64532946,0.00014868,2]
[360826901,1747049433335,-2008.59,0.0001487,2]
[360826906,1747049433347,-25266.28352816,0.00014871,2]
[360826909,1747049433356,-217.16,0.00014871,2]
[360826912,1747049433366,-643.55515777,0.00014873,2]
[360826915,1747049433376,-593.8743724,0.00014873,2]
[360826917,1747049433388,-500.0,0.00014873,2]
[360826921,1747049433399,-500.0,0.00014873,2]
[360826924,1747049433409,-500.0,0.00014873,2]
[360826927,1747049433420,-500.0,0.00014873,2]
[360826930,1747049433429,-500.0,0.00014873,2]
[360826933,1747049433439,-208.58960527,0.00014873,2]
[360826936,1747049433449,-500.0,0.00014873,2]
[360826939,1747049433459,-500.0,0.00014873,2]
[360826942,1747049433469,-493.75992029,0.00014873,2]
[360826945,1747049433478,-500.0,0.00014873,2]
[360826948,1747049433488,-500.0,0.00014873,2]
[360826951,1747049433497,-500.0,0.00014873,2]
[360826954,1747049433507,-500.0,0.00014873,2]
[360826957,1747049433516,-502.56205692,0.00014873,2]
[360826960,1747049433525,-500.15796901,0.00014873,2]
[360826963,1747049433535,-500.0,0.00014873,2]
[360826966,1747049433544,-500.0,0.00014873,2]
[360826969,1747049433553,-500.0,0.00014873,2]
[360826972,1747049433562,-500.0,0.00014873,2]
[360826975,1747049433572,-500.0,0.00014873,2]
[360826978,1747049433581,-500.0,0.00014873,2]
[360826981,1747049433590,-500.0,0.00014873,2]
[360826983,1747049433599,-500.0,0.00014873,2]
[360826985,1747049433609,-500.0,0.00014873,2]
[360826987,1747049433619,-500.0,0.00014873,2]
[360826989,1747049433629,-505.67096782,0.00014873,2]
[360826991,1747049433641,-500.0,0.00014873,2]
[360826993,1747049433651,-500.0,0.00014873,2]
[360826995,1747049433660,-7304.77575027,0.0001488,2]
[360826997,1747049433673,-4395.3340464,0.0001488,2]
[360827205,1747049438675,-3511.160415,0.0001488,2]
[360827214,1747049438750,-1967.67710489,0.0001488,2]
[360827311,1747049446932,-482.7826615,0.0001488,2]
[360827349,1747049856689,-299.41072498,0.00013555,2]
[360827350,1747049868485,-292.04984736,0.00013555,2]
[360827351,1747049883402,-239.24556227,0.00013554,2]
[360827352,1747049898647,-60.75443773,0.00013554,2]
[360827353,1747049898670,-155.60697604,0.00013555,2]
[360827355,1747049913435,-179.23776153,0.00013555,2]
[360827356,1747049928363,-200.57044813,0.00013555,2]
[360827357,1747049943488,-164.21709764,0.00013554,2]
[360827358,1747049958892,-135.78290236,0.00013554,2]
[360827359,1747049958915,-55.5677895,0.00013555,2]
[360827360,1747049973438,-370.58845339,0.00013555,2]
[360827361,1747049988523,-157.05194498,0.00013555,2]
[360827362,1747050003448,-248.8330352,0.00013554,2]
[360827363,1747050018904,-51.1669648,0.00013554,2]
[360827364,1747050018932,-162.72234678,0.00013554,2]
[360827365,1747050033431,-137.27765322,0.00013554,2]
[360827366,1747050033453,-34.94372362,0.00013554,2]
[360827368,1747050335009,-250.0,0.0002,30]
[360827370,1747050369706,-294.81471851,8.219e-05,2]
[360827373,1747050378485,-199.6168104,8.219e-05,2]
[360827374,1747050380730,-1013.76,0.00022,60]
[360827375,1747050387599,-2586.76116201,0.0002,30]
[360827376,1747050387688,-488.33298754,0.00022,30]
[360827377,1747050387714,-154.55,0.00022,30]
[360827378,1747050387750,-212.17074216,0.00023,30]
[360827379,1747050387774,-997.78101552,0.00023,30]
[360827380,1747050387798,-314.24507772,0.00023,30]
[360827381,1747050387823,-12623.54026388,0.00023,30]
[360827382,1747050393529,-171.94854829,8.137e-05,2]
[360827383,1747050393553,-14.56847109,8.219e-05,2]
[360827384,1747050403214,-2158.85875117,0.0002,20]
[360827387,1747050462582,500.0,0.00022,120]
[360827388,1747050463346,500.0,0.00022,120]
[360827389,1747050464118,500.0,0.00022,120]
[360827390,1747050464908,355.67,0.00022,120]
[360827408,1747050597780,-196.06989172,0.00012773,2]
[360827409,1747050603073,199.6168104,0.000161,9]
[360827410,1747050603401,-177.77434013,0.00012773,2]
[360827411,1747050618432,-196.92927326,0.00012773,2]
[360827510,1747050634491,-111.32109159,0.00012773,2]
[360827522,1747050636375,-218.0,0.00013553,2]
[360827523,1747050636385,-300.0,0.00013554,2]
[360827524,1747050636395,-256.0,0.00013554,2]
[360827525,1747050636404,-1200.0,0.00013554,2]
[360827526,1747050636413,-471.93094916,0.00013554,2]
[360827527,1747050636424,-190.58421731,0.00013554,2]
[360827528,1747050636434,-373.84423185,0.00013554,2]
[360827529,1747050636443,-23189.91605409,0.00013555,2]
[360827530,1747050636453,-459.948327,0.00013699,2]
[360827531,1747050636462,-272.123,0.0001387,2]
[360827532,1747050636472,-500.0,0.00013871,2]
[360827533,1747050636482,-500.0,0.00013871,2]
[360827534,1747050636491,-500.0,0.00013871,2]
[360827535,1747050636501,-500.0,0.00013871,2]
[360827536,1747050636511,-205.82006686,0.00013871,2]
[360827537,1747050636716,-3.47298833,0.00013871,2]
[360827538,1747050636726,-500.0,0.00013871,2]
[360827539,1747050636736,-500.0,0.00013871,2]
[360827540,1747050636749,-500.0,0.00013871,2]
[360827541,1747050636759,-500.0,0.00013871,2]
[360827542,1747050636768,-273.26913329,0.00013871,2]
[360827543,1747050636779,-15136.7709671,0.00013871,2]
[360827544,1747050636788,-47915.59115831,0.00013872,2]
[360827545,1747050636798,-187.953458,0.00014602,2]
[360827546,1747050636807,-53157.39725387,0.00014749,2]
[360827547,1747050636816,-152.0,0.00014783,2]
[360827548,1747050636826,-253.08602057,0.00014797,2]
[360827549,1747050636836,-5516.35137702,0.00014798,2]
[360827550,1747050636845,-362.9868952,0.000148,2]
[360827551,1747050636854,-362.9868952,0.000148,2]
[360827552,1747050636864,-362.9868952,0.000148,2]
[360827553,1747050636873,-362.9868952,0.000148,2]
[360827554,1747050636883,-362.9868952,0.000148,2]
[360827555,1747050636892,-187.953458,0.00014802,2]
[360827556,1747050636902,-653.6246642,0.00014823,2]
[360827557,1747050636912,-420.0,0.00014856,2]
[360827558,1747050636924,-500.0,0.00014873,2]
[360827559,1747050636933,-500.0,0.00014873,2]
[360827560,1747050636942,-389.70703784,0.00014873,2]
[360827561,1747050636951,-500.0,0.00014873,2]
[360827562,1747050636960,-500.0,0.00014873,2]
[360827563,1747050636970,-500.0,0.00014873,2]
[360827564,1747050636979,-589.73016773,0.00014873,2]
[360827565,1747050636988,-500.0,0.00014873,2]
[360827566,1747050636997,-500.0,0.00014873,2]
[360827567,1747050637006,-500.0,0.00014873,2]
[360827568,1747050637015,-500.0,0.00014873,2]
[360827569,1747050637024,-500.0,0.00014873,2]
[360827570,1747050637033,-500.0,0.00014873,2]
[360827571,1747050637042,-500.0,0.00014873,2]
[360827572,1747050637051,-500.0,0.00014873,2]
[360827573,1747050637060,-500.0,0.00014873,2]
[360827574,1747050637070,-202.1005569,0.00014873,2]
[360827575,1747050637079,-500.0,0.00014873,2]
[360827576,1747050637088,-500.0,0.00014873,2]
[360827577,1747050637097,-500.0,0.00014873,2]
[360827578,1747050637107,-500.0,0.00014873,2]
[360827579,1747050637116,-500.0,0.00014873,2]
[360827580,1747050637125,-527.72156473,0.00014873,2]
[360827581,1747050637134,-500.0,0.00014873,2]
[360827582,1747050637143,-500.0,0.00014873,2]
[360827583,1747050637152,-30765.05292381,0.0001488,2]
[360827639,1747050637879,-11467.8,0.0001488,2]
[360827649,1747050637987,-4015.78002406,0.0001488,2]
[360827651,1747050637997,-500.0,0.0001488,2]
[360827653,1747050638007,-500.0,0.0001488,2]
[360827655,1747050638016,-500.0,0.0001488,2]
[360827657,1747050638027,-160.0,0.00014896,2]
[360827659,1747050638037,-212450.5752544,0.00014897,5]
[360827661,1747050638047,-151.0,0.00014897,2]
[360827663,1747050638058,-151.0,0.00014897,2]
[360827665,1747050638070,-151.0,0.00014897,2]
[360827667,1747050638080,-151.0,0.00014897,2]
[360827669,1747050638091,-151.0,0.00014897,2]
[360827671,1747050638100,-151.0,0.00014897,2]
[360827673,1747050638110,-151.0,0.00014897,2]
[360827675,1747050638119,-151.0,0.00014897,2]
[360827677,1747050638129,-151.0,0.00014897,2]
[360827679,1747050638139,-151.0,0.00014897,2]
[360827681,1747050638149,-166.397007,0.00014897,2]
[360827683,1747050638160,-166.397007,0.00014897,2]
[360827685,1747050638170,-4227.474905,0.00014897,2]
[360827687,1747050638189,-4227.474905,0.00014897,2]
[360827689,1747050638199,-151.0,0.00014897,2]
[360827691,1747050638212,-154.416704,0.00014897,2]
[360827693,1747050638231,-480.840766,0.00014897,2]
[360827695,1747050638251,-480.840766,0.00014897,2]
[360827697,1747050638273,-151.0,0.00014897,2]
[360827699,1747050638295,-259.052866,0.00014897,2]
[360827701,1747050638317,-259.052866,0.00014897,2]
[360827703,1747050638339,-192.605338,0.00014897,2]
[360827705,1747050638359,-192.605338,0.00014897,2]
[360827706,1747050638374,-495.553592,0.00014897,2]
[360827708,1747050638386,-495.553592,0.00014897,2]
[360827710,1747050638399,-164.668382,0.00014897,2]
[360827713,1747050638410,-164.668382,0.00014897,2]
[360827714,1747050638420,-249.832669,0.00014897,2]
[360827716,1747050638435,-249.832669,0.00014897,2]
[360827718,1747050638445,-220.65,0.00014897,2]
[360827720,1747050638460,-220.65,0.00014897,2]
[360827722,1747050638473,-151.0,0.00014897,2]
[360827724,1747050638487,-164.499883,0.00014897,2]
[360827726,1747050638505,-151.0,0.00014897,2]
[360827728,1747050638523,-164.499883,0.00014897,2]
[360827730,1747050638536,-151.0,0.00014897,2]
[360827732,1747050638546,-1241.959779,0.00014897,2]
[360827734,1747050638559,-1241.959779,0.00014897,2]
[360827736,1747050638572,-153.129764,0.00014897,2]
[360827738,1747050638583,-151.373288,0.00014897,2]
[360827740,1747050638594,-151.0,0.00014897,2]
[360827742,1747050638605,-151.75907,0.00014897,2]
[360827744,1747050638615,-1651.145173,0.00014897,2]
[360827746,1747050638626,-308.061559,0.00014897,2]
[360827748,1747050638636,-1651.145173,0.00014897,2]
[360827750,1747050638647,-151.0,0.00014897,2]
[360827753,1747050638658,-308.061559,0.00014897,2]
[360827754,1747050638668,-151.0,0.00014897,2]
[360827756,1747050638683,-151.0,0.00014897,2]
[360827758,1747050638693,-373.734381,0.00014897,2]
[360827760,1747050638702,-373.734381,0.00014897,2]
[360827762,1747050638711,-151.0,0.00014897,2]
[360827764,1747050638721,-273.702982,0.00014897,2]